bitfinex/quotes_BTCUSD_20220218
["timestamp","ask_amount","ask_price","bid_price","bid_amount"]
[1645201208911,0.1,40110.0,40098.0,0.34296626]
[1645201208912,0.3568086,40104.0,40098.0,0.34296626]
[1645201209114,0.4191846,40104.0,40097.0,0.01]
[1645201209312,0.34145642,40104.0,40094.0,0.34296626]
[1645201209510,0.34145642,40104.0,40101.0,0.00275398]
[1645201209511,0.1,40102.0,40101.0,0.00275398]
[1645201209711,0.15,40102.0,40101.0,0.00275398]
[1645201209913,0.15,40102.0,40101.0,0.27904824]
[1645201210111,0.05,40102.0,40101.0,0.27904824]
[1645201210312,0.05,40103.0,40101.0,0.27904824]
[1645201210567,0.3362104,40104.0,40101.0,0.00275398]
[1645201210957,0.3262334,40104.0,40101.0,0.00275398]
[1645201211159,0.112376,40104.0,40101.0,0.00275398]
[1645201213359,0.112376,40104.0,40101.0,5.98e-06]
[1645201214606,0.009978,40104.0,40101.0,5.98e-06]
[1645201215005,0.224741,40106.0,40101.0,5.98e-06]
[1645201215407,0.062376,40104.0,40101.0,5.98e-06]
[1645201215907,0.187121,40105.0,40101.0,5.98e-06]
[1645201216110,0.37744221,40117.0,40101.0,5.98e-06]
[1645201216111,0.1,40111.0,40102.0,0.14724182]
[1645201216312,0.1,40111.0,40110.0,0.14724182]
[1645201216512,0.55,40116.0,40110.0,0.14724182]
[1645201216513,0.55,40116.0,40110.0,0.52952397]
[1645201216710,0.5,40116.0,40110.0,0.37808215]
[1645201216910,0.15,40126.0,40115.0,0.14724182]
[1645201217111,0.1,40134.0,40124.0,0.14724182]
[1645201217308,0.1,40137.0,40125.0,0.0458]
[1645201217509,0.1,40137.0,40120.0,0.33842698]
[1645201217510,0.1,40137.0,40129.0,0.14724182]
[1645201217713,0.1,40142.0,40136.0,0.33725052]
[1645201217909,0.0032,40145.0,40137.0,0.0458]
[1645201218176,0.0032,40145.0,40142.0,0.14724182]
[1645201218375,0.0032,40145.0,40144.0,0.07]
[1645201218573,0.0032,40145.0,40144.0,0.1158]
[1645201218772,0.0032,40145.0,40144.0,0.1658]
[1645201221810,0.0032,40145.0,40144.0,0.1625]
[1645201223010,0.0032,40145.0,40144.0,0.49986128]
[1645201223210,0.0001,40145.0,40144.0,0.6471031]
[1645201223511,0.0011,40146.0,40145.0,1.6]
[1645201223713,0.00036838,40153.0,40147.0,0.06228]
[1645201223913,0.00246838,40154.0,40150.0,0.14724182]
[1645201224110,0.00036838,40153.0,40151.0,0.0458]
[1645201224310,0.0021,40154.0,40152.0,0.38807997]
[1645201224511,0.0021,40154.0,40153.0,0.1158]
[1645201227266,0.0021,40154.0,40153.0,0.39453225]
[1645201227662,0.0021,40154.0,40153.0,0.49453225]
[1645201228063,0.0021,40154.0,40153.0,0.83189353]
[1645201228264,0.00146838,40157.0,40153.0,0.83189353]
[1645201228464,0.0011,40157.0,40156.0,0.07]
[1645201228663,0.0011,40157.0,40156.0,0.45316128]
[1645201228863,0.0011,40157.0,40156.0,0.55316128]
[1645201229062,0.0011,40157.0,40156.0,0.2158]
[1645201229510,0.0011,40157.0,40156.0,0.55316128]
[1645201229711,0.00036838,40160.0,40156.0,0.55316128]
[1645201229912,0.00036838,40160.0,40157.0,0.40736128]
[1645201230110,0.00541918,40161.0,40157.0,0.40736128]
[1645201230309,0.00541918,40161.0,40157.0,0.55316128]
[1645201230809,0.00541918,40161.0,40157.0,0.2158]
[1645201231210,0.00541918,40161.0,40157.0,0.55316128]
[1645201232812,0.00541918,40161.0,40158.0,1.6]
[1645201232813,0.00282884,40161.0,40158.0,1.6]
[1645201233075,0.00246046,40161.0,40160.0,0.07]
[1645201233465,0.0032,40163.0,40161.0,1.6]
[1645201233667,0.061061,40173.0,40165.0,1.6]
[1645201233869,0.0011,40184.0,40167.0,1.6]
[1645201234070,0.0011,40184.0,40178.0,0.14724182]
[1645201234274,0.0011,40184.0,40172.0,0.1]
[1645201234275,0.0011,40184.0,40181.0,0.14724182]
[1645201234468,0.01338993,40189.0,40181.0,0.14724182]
[1645201234469,0.126546,40204.0,40183.0,1.6]
[1645201234667,0.0632,40199.0,40189.0,0.19]
[1645201234866,0.0632,40199.0,40193.0,0.14724182]
[1645201234867,0.01764608,40195.0,40193.0,0.14724182]
[1645201235072,0.0021,40204.0,40197.0,1.5]
[1645201235266,0.05071484,40208.0,40199.0,1.15]
[1645201235566,0.05071484,40208.0,40200.0,0.0458]
[1645201235567,0.00182968,40208.0,40200.0,0.0458]
[1645201235766,0.00182968,40208.0,40203.0,0.186566]
[1645201235967,0.00182968,40208.0,40204.0,0.0458]
[1645201236269,0.00182968,40208.0,40206.0,0.06219002]
[1645201236566,0.00182968,40208.0,40207.0,0.0458]
[1645201236814,0.06988939,40209.0,40208.0,1.2]
[1645201237014,0.06988939,40209.0,40208.0,1.2458]
[1645201237209,0.001,40210.0,40209.0,1.35]
[1645201237409,0.001,40210.0,40209.0,0.206981]
[1645201237612,0.001,40210.0,40209.0,0.107981]
[1645201238008,0.001,40210.0,40209.0,0.177981]
[1645201238211,0.00118152,40216.0,40211.0,0.124355]
[1645201238411,0.004,40227.0,40213.0,2.5484192]
[1645201238613,0.004,40227.0,40220.0,0.14724182]
[1645201238810,0.004,40227.0,40214.0,2.09286128]
[1645201238811,3.2e-07,40218.0,40214.0,2.04706128]
[1645201239010,0.00112852,40227.0,40217.0,0.07]
[1645201239209,0.00112852,40227.0,40218.0,0.0458]
[1645201239410,0.00112852,40227.0,40222.0,0.062162]
[1645201239608,0.00112852,40227.0,40223.0,0.0458]
[1645201239809,0.0111,40239.0,40223.0,0.0458]
[1645201239810,0.000709,40245.0,40224.0,0.75]
[1645201240009,0.27767307,40234.0,40230.0,0.29112865]
[1645201240212,0.000709,40238.0,40229.0,0.170123]
[1645201240410,0.000709,40238.0,40231.0,0.06215563]
[1645201240872,0.000709,40238.0,40230.0,0.062162]
[1645201241271,0.25434592,40234.0,40230.0,0.062162]
[1645201241670,0.000709,40238.0,40230.0,0.062162]
[1645201242071,0.124309,40246.0,40231.0,0.0458]
[1645201242072,0.120018,40246.0,40231.0,0.0458]
[1645201242273,0.00022696,40240.0,40231.0,0.0458]
[1645201242473,0.00022696,40240.0,40225.0,0.00876334]
[1645201242474,0.612516,40239.0,40225.0,0.00876334]
[1645201242671,0.31664312,40228.0,40225.0,0.00876334]
[1645201242874,0.31664312,40228.0,40223.0,0.35051541]
[1645201243171,0.31664312,40228.0,40216.0,0.124363]
[1645201243172,0.20470423,40225.0,40216.0,0.124363]
[1645201243374,0.062186,40223.0,40216.0,0.124363]
[1645201243676,0.062186,40223.0,40210.0,0.001097]
[1645201243677,0.062192,40221.0,40210.0,0.001097]
[1645201243874,0.25470423,40225.0,40207.0,0.00178666]
[1645201243875,1.6,40219.0,40207.0,0.00178666]
[1645201244074,0.19301868,40212.0,40207.0,0.00178666]
[1645201244313,1.6,40211.0,40192.0,0.06221365]
[1645201244516,0.062216,40206.0,40192.0,0.06221365]
[1645201244715,0.062216,40206.0,40191.0,0.25874386]
[1645201244716,0.062216,40206.0,40191.0,0.134436]
[1645201245016,0.186646,40208.0,40191.0,0.01]
[1645201245017,0.062215,40205.0,40191.0,0.01]
[1645201245216,0.062215,40205.0,40193.0,0.3370304]
[1645201245518,0.062215,40205.0,40191.0,0.01]
[1645201245519,0.10704696,40201.0,40191.0,0.01]
[1645201245714,0.06223,40196.0,40191.0,0.01]
[1645201245914,0.31841108,40203.0,40199.0,0.22445999]
[1645201246114,0.248899,40204.0,40191.0,0.01]
[1645201246313,0.248899,40204.0,40192.0,0.1]
[1645201246314,0.186675,40204.0,40192.0,0.1]
[1645201246515,0.27819312,40203.0,40199.0,0.32853853]
[1645201246715,0.27819312,40203.0,40191.0,0.01]
[1645201246716,0.4623821,40203.0,40191.0,0.01]
[1645201247114,0.5123821,40203.0,40191.0,0.01]
[1645201247315,0.5123821,40203.0,40191.0,0.07221368]
[1645201247515,0.5123821,40203.0,40191.0,0.12221368]
[1645201247715,0.5123821,40203.0,40194.0,0.40050962]
[1645201248363,0.5123821,40203.0,40194.0,0.27608162]
[1645201248964,0.062218,40202.0,40194.0,0.27608162]
[1645201249364,0.062218,40202.0,40192.0,0.7199]
[1645201249567,0.16258866,40206.0,40195.0,0.1]
[1645201249769,0.186646,40217.0,40201.0,0.14724182]
[1645201249973,0.00014209,40226.0,40202.0,0.0458]
[1645201249974,0.05,40219.0,40202.0,0.0458]
[1645201250270,0.062193,40212.0,40202.0,0.0458]
[1645201250467,0.05,40219.0,40204.0,0.14724182]
[1645201250669,0.05,40219.0,40205.0,0.1]
[1645201250670,0.29960553,40215.0,40205.0,0.1]
[1645201251067,0.29966944,40215.0,40206.0,0.0458]
[1645201251807,0.29966944,40215.0,40208.0,0.06219]
[1645201251808,0.41185944,40215.0,40208.0,0.06219]
[1645201252007,0.36185944,40215.0,40208.0,0.06219]
[1645201252607,0.36185944,40215.0,40208.0,0.10799]
[1645201253311,0.41185944,40215.0,40209.0,0.06219173]
[1645201253508,0.55215173,40215.0,40209.0,0.06219173]
[1645201253908,0.55215173,40215.0,40206.0,0.0094]
[1645201254112,0.11225391,40215.0,40206.0,0.0094]
[1645201254309,0.06225391,40215.0,40206.0,0.30244182]
[1645201254512,0.05,40219.0,40215.0,1.6]
[1645201254814,0.25,40222.0,40216.0,0.0458]
[1645201255008,0.25,40222.0,40216.0,0.93899182]
[1645201255209,0.25,40222.0,40219.0,0.12433554]
[1645201255410,0.25,40222.0,40220.0,0.0458]
[1645201256866,0.3,40222.0,40220.0,0.107977]
[1645201257067,0.25,40222.0,40220.0,0.207977]
[1645201257570,0.25,40222.0,40220.0,0.107977]
[1645201257767,0.25,40222.0,40220.0,0.207977]
[1645201257967,0.05,40230.0,40221.0,1.6]
[1645201258174,0.05,40230.0,40225.0,0.07]
[1645201258376,0.12991791,40245.0,40229.0,0.17]
[1645201258377,0.05,40241.0,40229.0,0.17]
[1645201258572,0.0011,40245.0,40225.0,0.7]
[1645201258573,0.0011,40245.0,40231.0,0.124283]
[1645201258770,0.0011,40245.0,40235.0,0.24724182]
[1645201258971,0.0011,40245.0,40236.0,0.38383845]
[1645201259418,0.0011,40245.0,40236.0,0.1458]
[1645201259619,0.0011,40245.0,40237.0,0.06214]
[1645201259819,0.124288,40243.0,40238.0,0.0458]
[1645201260222,0.174288,40243.0,40238.0,0.0458]
[1645201260422,0.27517731,40242.0,40238.0,0.0458]
[1645201260624,0.10706707,40239.0,40232.0,0.06215164]
[1645201260820,0.05,40239.0,40236.0,0.062155]
[1645201261022,0.05,40239.0,40236.0,0.107955]
[1645201261023,0.174309,40239.0,40236.0,0.107955]
[1645201261921,0.062153,40238.0,40236.0,0.107955]
[1645201262120,0.062153,40238.0,40236.0,0.157955]
[1645201262521,0.057153,40238.0,40236.0,0.107955]
[1645201262922,0.001029,40250.0,40238.0,1.6]
[1645201263191,0.13001633,40267.0,40238.0,1.6]
[1645201263192,0.18199877,40260.0,40258.0,0.14724182]
[1645201263391,0.10806283,40267.0,40263.0,0.14724182]
[1645201263591,0.0510109,40275.0,40266.0,1.087484]
[1645201263786,0.16681214,40280.0,40269.0,1.987484]
[1645201263988,0.31060972,40282.0,40274.0,1.23472582]
[1645201264182,0.0031,40285.0,40278.0,0.07]
[1645201264382,0.0031,40285.0,40271.0,0.5724]
[1645201264383,0.02504,40284.0,40259.0,0.1]
[1645201264582,0.02504,40284.0,40258.0,0.124159]
[1645201264583,1.90514896,40287.0,40276.0,0.06207]
[1645201264782,1.90514896,40287.0,40246.0,0.3998]
[1645201264783,0.612516,40284.0,40246.0,0.3998]
[1645201265082,0.12427366,40257.0,40254.0,0.24832943]
[1645201265283,0.12427366,40257.0,40246.0,0.1]
[1645201265284,0.0011,40280.0,40257.0,0.24854731]
[1645201265480,0.00036654,40261.0,40258.0,0.0458]
[1645201265685,0.3155155,40276.0,40257.0,0.37276131]
[1645201265881,0.0458,40278.0,40257.0,0.37276131]
[1645201266282,0.34389746,40266.0,40257.0,0.37276131]
[1645201266482,0.00021862,40268.0,40260.0,0.1]
[1645201266687,0.00021862,40268.0,40267.0,0.1]
[1645201266923,0.0011,40280.0,40269.0,0.34724182]
[1645201266924,0.00036654,40279.0,40269.0,0.34724182]
[1645201267121,0.0011,40280.0,40269.0,0.387484]
[1645201267122,0.00036654,40275.0,40269.0,0.387484]
[1645201267318,0.0011,40280.0,40276.0,0.01323878]
[1645201267519,0.05,40283.0,40270.0,0.24010147]
[1645201267520,0.05,40283.0,40278.0,0.06207]
[1645201267718,0.25819864,40283.0,40278.0,0.06207]
[1645201268116,0.01,40289.0,40278.0,0.06207]
[1645201268318,0.01,40289.0,40278.0,0.37721896]
[1645201268518,0.22279706,40289.0,40278.0,0.06207]
[1645201268724,0.12220237,40283.0,40278.0,0.06207]
[1645201268921,0.12220237,40283.0,40275.0,0.1]
[1645201269121,0.12220237,40283.0,40269.0,0.06774]
[1645201269320,0.25114825,40273.0,40269.0,0.06774]
[1645201269524,0.1999,40271.0,40269.0,0.02194]
[1645201269722,0.1999,40271.0,40269.0,0.12194]
[1645201269923,0.1999,40271.0,40269.0,0.02194]
[1645201270123,0.2499,40271.0,40269.0,0.084036]
[1645201270767,0.55526987,40271.0,40269.0,0.084036]
[1645201271066,0.55526987,40271.0,40269.0,0.02194]
[1645201272670,0.55526987,40271.0,40268.0,6e-05]
[1645201272671,0.17808109,40270.0,40268.0,6e-05]
[1645201272873,0.0458,40269.0,40251.0,0.30621696]
[1645201273068,0.0458,40269.0,40248.0,0.30621696]
[1645201273069,0.14460375,40261.0,40248.0,0.30621696]
[1645201273267,0.14460375,40261.0,40248.0,0.1]
[1645201273268,0.1998,40258.0,40248.0,0.1]
[1645201273468,0.1998,40258.0,40249.0,0.30621696]
[1645201273670,0.52099922,40258.0,40249.0,0.40621696]
[1645201273871,0.2498,40258.0,40257.0,0.31854731]
[1645201274070,0.2498,40258.0,40257.0,0.27924731]
[1645201274324,0.2498,40258.0,40239.0,0.30621696]
[1645201274613,0.2498,40258.0,40233.0,0.124297]
[1645201274614,0.0097,40257.0,40233.0,0.124297]
[1645201274915,0.10434547,40239.0,40233.0,0.124297]
[1645201275115,0.15392589,40239.0,40233.0,0.124297]
[1645201275317,0.15392589,40239.0,40231.0,0.11]
[1645201275515,0.15392589,40239.0,40228.0,0.35694861]
[1645201275516,0.32188389,40229.0,40228.0,0.35694861]
[1645201275717,0.05,40239.0,40231.0,0.52331949]
[1645201275913,0.0458,40246.0,40231.0,0.52331949]
[1645201275914,0.67110729,40268.0,40248.0,0.06141548]
[1645201276113,0.11410959,40232.0,40231.0,0.52331949]
[1645201276314,0.11410959,40232.0,40231.0,0.5715668]
[1645201277316,0.11410959,40232.0,40231.0,0.52331949]
[1645201278358,1.6,40231.0,40221.0,0.01]
[1645201278760,0.1429301,40223.0,40221.0,0.01]
[1645201278958,0.1429301,40223.0,40222.0,0.04824731]
[1645201279161,0.1929301,40223.0,40222.0,0.04824731]
[1645201279357,0.1929301,40223.0,40221.0,0.01]
[1645201280357,0.1929301,40223.0,40222.0,0.04824731]
[1645201280560,0.05,40223.0,40222.0,0.04824731]
[1645201281911,0.14006376,40229.0,40222.0,0.04824731]
[1645201282111,0.14006376,40229.0,40221.0,0.134335]
[1645201282309,0.14006376,40229.0,40221.0,0.184335]
[1645201282912,0.14006376,40229.0,40223.0,0.2]
[1645201283111,0.14006376,40229.0,40221.0,0.184335]
[1645201283511,0.28199727,40223.0,40221.0,0.06]
[1645201283713,0.14006376,40229.0,40222.0,0.04824731]
[1645201283911,0.14006376,40229.0,40222.0,0.05]
[1645201284313,0.14006376,40229.0,40221.0,0.01]
[1645201284710,0.31248148,40226.0,40221.0,0.01]
[1645201285117,0.31248148,40226.0,40211.0,0.31073182]
[1645201285118,1.6,40225.0,40211.0,0.31073182]
[1645201285313,0.0458,40224.0,40211.0,0.01]
[1645201285559,0.0458,40224.0,40201.0,0.22333435]
[1645201285560,1.6,40223.0,40202.0,0.32675284]
[1645201285760,0.35021313,40214.0,40203.0,0.0097]
[1645201285961,0.30122776,40221.0,40217.0,0.5629197]
[1645201286162,0.30122776,40221.0,40207.0,0.15421194]
[1645201286163,0.12527844,40209.0,40207.0,0.124379]
[1645201286360,0.10887068,40211.0,40209.0,0.25055687]
[1645201286561,0.10887068,40211.0,40210.0,0.04824731]
[1645201287161,0.38942939,40211.0,40209.0,0.25055687]
[1645201287560,0.38942939,40211.0,40209.0,0.25027888]
[1645201287762,0.38942939,40211.0,40201.0,0.01]
[1645201287763,1.6,40210.0,40201.0,0.01]
[1645201287965,0.30485698,40209.0,40201.0,0.01]
[1645201288163,1.7,40208.0,40194.0,0.2487]
[1645201288362,0.062221,40206.0,40194.0,0.2487]
[1645201288562,1.7,40208.0,40194.0,0.2437]
[1645201288563,0.40485698,40205.0,40194.0,0.2437]
[1645201288760,0.39026137,40204.0,40194.0,0.2437]
[1645201288963,0.25614357,40195.0,40194.0,0.2437]
[1645201289162,0.38444346,40195.0,40194.0,0.29194731]
[1645201290214,0.38444346,40195.0,40191.0,0.01]
[1645201290215,1.6,40194.0,40191.0,0.01]
[1645201290416,0.3046299,40193.0,40191.0,0.01]
[1645201290613,1.6458,40192.0,40181.0,0.01]
[1645201290813,1.6458,40192.0,40175.0,0.19731434]
[1645201290814,1.708041,40191.0,40175.0,0.19731434]
[1645201291016,2.0126709,40191.0,40172.0,0.062252]
[1645201291214,0.30283871,40177.0,40171.0,0.01]
[1645201291514,0.10746265,40187.0,40175.0,0.07]
[1645201291515,0.3504299,40186.0,40175.0,0.07]
[1645201291714,0.062259,40183.0,40171.0,0.01]
[1645201292012,0.11080897,40173.0,40171.0,0.01]
[1645201292214,0.11080897,40173.0,40172.0,0.07]
[1645201292612,0.36678597,40173.0,40172.0,0.07]
[1645201293161,0.11080897,40173.0,40172.0,0.07]
[1645201293866,0.11080897,40173.0,40171.0,0.01]
[1645201294661,0.28500114,40172.0,40171.0,0.01]
[1645201294866,0.11080897,40173.0,40171.0,0.01]
[1645201294867,0.11080897,40173.0,40171.0,0.08]
[1645201295063,0.3046299,40184.0,40172.0,0.07]
[1645201295264,0.3046299,40184.0,40171.0,0.01]
[1645201295464,0.0958,40185.0,40171.0,0.01]
[1645201295465,0.0958,40185.0,40172.0,0.062252]
[1645201295864,0.32386728,40178.0,40172.0,0.062252]
[1645201296064,0.32386728,40178.0,40176.0,0.07]
[1645201296263,0.32386728,40178.0,40177.0,0.07]
[1645201296664,0.14157446,40179.0,40177.0,0.07]
[1645201296915,0.14157446,40179.0,40171.0,0.01]
[1645201296916,0.186771,40187.0,40178.0,0.07]
[1645201297116,0.186771,40187.0,40171.0,0.06]
[1645201297319,0.3046299,40186.0,40171.0,0.01]
[1645201297720,0.3546299,40189.0,40171.0,0.01]
[1645201297917,0.3546299,40189.0,40171.0,0.072254]
[1645201297918,0.062246,40182.0,40171.0,0.072254]
[1645201298218,0.1406358,40181.0,40171.0,0.072254]
[1645201298818,0.12451,40180.0,40171.0,0.122254]
[1645201299020,0.0043159,40172.0,40171.0,0.122254]
[1645201299223,0.26275109,40184.0,40171.0,0.122254]
[1645201299224,0.26275109,40184.0,40173.0,0.01726066]
[1645201299417,0.186768,40188.0,40173.0,0.01726066]
[1645201299418,0.186768,40188.0,40173.0,0.00506066]
[1645201299618,0.186768,40188.0,40177.0,0.062244]
[1645201300025,0.062241,40185.0,40159.0,0.14724182]
[1645201300220,0.062241,40185.0,40165.0,0.2]
[1645201300221,0.11773989,40166.0,40165.0,0.2]
[1645201300421,0.11773989,40166.0,40165.0,0.07]
[1645201300666,0.16773989,40166.0,40165.0,0.12]
[1645201301067,0.16773989,40166.0,40165.0,0.07]
[1645201301867,0.05,40166.0,40165.0,0.07]
[1645201302069,0.05,40166.0,40165.0,0.27]
[1645201302572,0.05,40166.0,40165.0,0.12]
[1645201302867,0.05,40166.0,40165.0,0.07]
[1645201303870,0.45064984,40166.0,40165.0,0.07]
[1645201304322,0.16847073,40166.0,40165.0,0.07]
[1645201305719,0.16847073,40166.0,40163.0,0.05]
[1645201305918,0.16847073,40166.0,40153.0,0.0094]
[1645201305919,0.05,40166.0,40153.0,0.0094]
[1645201306123,0.05,40166.0,40151.0,0.514]
[1645201306124,0.0098,40165.0,40151.0,0.01]
[1645201306617,0.33074687,40160.0,40151.0,0.01]
[1645201306821,0.47790663,40160.0,40155.0,0.07]
[1645201307015,0.47790663,40160.0,40159.0,0.07]
[1645201307917,0.14715976,40160.0,40159.0,0.07]
[1645201308163,0.124567,40161.0,40159.0,0.07]
[1645201308364,0.124567,40161.0,40160.0,0.07]
[1645201308961,0.062282,40162.0,40161.0,0.249134]
[1645201309163,0.34284004,40162.0,40161.0,0.249134]
[1645201309762,0.124566,40163.0,40161.0,0.249134]
[1645201310366,0.124566,40163.0,40161.0,0.299134]
[1645201310563,0.124542,40168.0,40161.0,0.299134]
[1645201311362,0.124542,40168.0,40163.0,0.062269]
[1645201311563,0.05,40166.0,40163.0,0.062269]
[1645201313316,0.05,40166.0,40163.0,0.112269]
[1645201313714,0.062258,40168.0,40163.0,0.112269]
[1645201313916,0.0098,40176.0,40167.0,0.07]
[1645201314113,0.0098,40176.0,40171.0,0.07]
[1645201314313,0.062238,40181.0,40175.0,0.07]
[1645201314514,0.062238,40181.0,40172.0,0.05]
[1645201314715,0.062238,40181.0,40165.0,0.30101712]
[1645201314716,0.11249542,40175.0,40164.0,0.48778018]
[1645201314920,0.12229542,40175.0,40165.0,0.0092]
[1645201315114,0.12229542,40175.0,40163.0,0.3058]
[1645201315115,0.062271,40173.0,40163.0,0.3058]
[1645201315318,0.062271,40173.0,40163.0,0.26]
[1645201315765,0.062271,40173.0,40167.0,0.07]
[1645201315962,0.062271,40173.0,40163.0,0.26]
[1645201315963,0.062271,40173.0,40171.0,0.07]
[1645201316164,0.062271,40173.0,40172.0,0.07]
[1645201316362,0.41707192,40173.0,40172.0,0.07]
[1645201316962,0.41707192,40173.0,40164.0,0.009]
[1645201317164,0.062275,40171.0,40164.0,0.009]
[1645201317563,0.062269,40170.0,40164.0,0.009]
[1645201317965,0.19538062,40170.0,40168.0,0.07]
[1645201318165,0.062269,40170.0,40169.0,0.07]
[1645201321422,0.124486,40177.0,40169.0,0.194483]
[1645201321621,0.124486,40177.0,40174.0,0.2]
[1645201321818,0.05955,40188.0,40175.0,0.0458]
[1645201322117,0.05955,40188.0,40176.0,0.0557]
[1645201322118,0.35442139,40181.0,40176.0,0.0557]
[1645201322317,0.062244,40182.0,40176.0,0.117944]
[1645201322620,0.05955,40188.0,40173.0,0.15]
[1645201322621,0.04995,40188.0,40180.0,0.07]
[1645201322817,0.04995,40188.0,40184.0,0.07]
[1645201323058,0.04995,40188.0,40187.0,0.07]
[1645201323667,0.174409,40188.0,40187.0,0.1158]
[1645201324159,0.04995,40188.0,40187.0,0.1158]
[1645201324560,0.04995,40188.0,40187.0,0.31304182]
[1645201324764,0.04995,40188.0,40187.0,0.37526482]
[1645201324961,0.04995,40188.0,40187.0,0.47526482]
[1645201325162,0.04995,40188.0,40187.0,0.77526482]
[1645201326164,0.04995,40188.0,40187.0,0.228023]
[1645201328913,0.05204354,40188.0,40187.0,0.228023]
[1645201329112,0.00206146,40189.0,40188.0,1.65408707]
[1645201329313,0.00206146,40189.0,40188.0,1.76988707]
[1645201329513,0.00206146,40189.0,40188.0,1.86988707]
[1645201329916,0.00206146,40189.0,40188.0,1.79988707]
[1645201330117,0.00206146,40189.0,40188.0,1.86988707]
[1645201330565,0.00206146,40189.0,40188.0,0.21988707]
[1645201330767,0.00206146,40189.0,40188.0,0.51988707]
[1645201330966,0.00206146,40189.0,40188.0,0.21988707]
[1645201331769,0.00206146,40189.0,40188.0,0.5103213]
[1645201332266,0.00206146,40189.0,40188.0,0.51032205]
[1645201333769,0.00180605,40189.0,40188.0,0.81341677]
[1645201333971,0.00180605,40189.0,40188.0,0.51341677]
[1645201334168,0.00180605,40189.0,40188.0,0.21341677]
[1645201334416,0.00180605,40189.0,40188.0,0.16761677]
[1645201334815,0.308042,40189.0,40188.0,0.16761677]
[1645201335214,0.358042,40189.0,40188.0,0.16761677]
[1645201336015,0.062222,40193.0,40192.0,0.14402662]
[1645201336215,0.28959087,40193.0,40192.0,0.14402662]
[1645201337015,0.42128836,40193.0,40192.0,0.19402662]
[1645201337215,0.41978836,40193.0,40192.0,0.19402662]
[1645201337415,0.41978836,40193.0,40192.0,0.14402662]
[1645201338070,0.41978836,40193.0,40188.0,0.10718179]
[1645201338071,1.6,40192.0,40188.0,0.10718179]
[1645201338276,0.062235,40191.0,40188.0,0.11243889]
[1645201338470,0.124479,40191.0,40188.0,0.11243889]
[1645201338675,0.124479,40191.0,40174.0,0.0097]
[1645201338676,0.0458,40190.0,40174.0,0.0097]
[1645201338870,0.14204413,40180.0,40170.0,0.3]
[1645201339070,0.14204413,40180.0,40174.0,0.07]
[1645201339071,0.009,40179.0,40174.0,0.07]
[1645201339274,0.009,40179.0,40178.0,0.07]
[1645201339474,0.05,40180.0,40168.0,0.0097]
[1645201339671,0.36934732,40179.0,40168.0,0.0097]
[1645201340074,0.06227083,40176.0,40161.0,0.249134]
[1645201340474,0.14762544,40167.0,40164.0,0.0093]
[1645201340674,0.51547089,40167.0,40166.0,0.07]
[1645201341273,0.20989544,40167.0,40166.0,0.07]
[1645201341473,0.14762544,40167.0,40166.0,0.07]
[1645201342713,0.14262544,40167.0,40166.0,0.07]
[1645201342917,0.124545,40168.0,40166.0,0.07]
[1645201343114,0.124545,40168.0,40161.0,0.249134]
[1645201343115,0.124545,40168.0,40167.0,0.07]
[1645201345667,0.062248,40176.0,40164.0,0.41046845]
[1645201345866,0.062248,40176.0,40168.0,0.06048011]
[1645201346064,0.062248,40176.0,40172.0,0.07]
[1645201346267,0.062248,40176.0,40175.0,0.07]
[1645201346663,0.062248,40176.0,40175.0,0.06045829]
[1645201347068,0.062243,40179.0,40175.0,0.06045829]
[1645201347266,0.00159525,40191.0,40171.0,0.35]
[1645201347267,0.00159525,40191.0,40178.0,0.12]
[1645201347467,0.00159525,40191.0,40181.0,0.2]
[1645201347664,0.00159525,40191.0,40181.0,0.14724182]
[1645201347866,0.00159525,40191.0,40182.0,0.3]
[1645201348067,0.25458973,40189.0,40182.0,0.3]
[1645201348265,0.25458973,40189.0,40184.0,0.06223]
[1645201348464,0.00159525,40191.0,40184.0,0.06223]
[1645201348465,0.00159525,40191.0,40188.0,0.06043649]
[1645201348668,0.00083741,40198.0,40190.0,0.06043649]
[1645201348669,0.124445,40196.0,40190.0,0.06043649]
[1645201348867,0.0011,40204.0,40194.0,0.07]
[1645201348868,0.0022,40202.0,40194.0,0.07]
[1645201349066,0.0022,40202.0,40191.0,0.0458]
[1645201349067,0.0022,40202.0,40199.0,0.2]
[1645201349322,0.28849538,40202.0,40201.0,0.07]
[1645201349918,0.28849538,40202.0,40201.0,0.06042071]
[1645201350118,0.0022,40202.0,40201.0,0.06042071]
[1645201350318,0.0011,40205.0,40201.0,0.10622071]
[1645201350521,0.0043,40208.0,40205.0,1.8]
[1645201350522,0.0041,40208.0,40205.0,1.8]
[1645201350721,0.0032,40211.0,40207.0,1.67]
[1645201350722,0.0091,40209.0,40207.0,1.67]
[1645201350921,0.0032,40211.0,40208.0,1.8798]
[1645201351118,0.0032,40211.0,40210.0,0.32846406]
[1645201351321,0.0111,40219.0,40211.0,1.6]
[1645201351620,0.0111,40219.0,40211.0,1.91304182]
[1645201351820,0.0111,40219.0,40211.0,2.01304182]
[1645201352222,0.0111,40219.0,40211.0,0.41304182]
[1645201352421,0.0111,40219.0,40211.0,0.15619518]
[1645201352620,0.13342337,40218.0,40211.0,0.15619518]
[1645201352820,0.0111,40219.0,40211.0,0.15619518]
[1645201353067,0.065394,40214.0,40211.0,0.15619518]
[1645201353262,0.28610168,40213.0,40211.0,0.10619518]
[1645201353462,0.28610168,40213.0,40211.0,0.06039518]
[1645201353962,0.0011,40213.0,40211.0,0.06039518]
[1645201354565,0.0011,40213.0,40206.0,0.062204]
[1645201354566,1.6011,40213.0,40206.0,0.062204]
[1645201354771,0.1011,40212.0,40210.0,0.00960482]
[1645201354966,0.062219,40208.0,40194.0,0.3]
[1645201355164,0.062214,40204.0,40194.0,0.3]